Cogmind - Beta 16 @@@ ROGUE MODE // 2025.11.03 @ 20:54:02 Player: Zaros426 Result: Destroyed by G-50 Soldier with Heavy Laser Performance ------------- Evolutions (2) 1000 Regions Visited (7) 1400 Robots Destroyed (153) 765 Value Destroyed (5205) 5205 Prototype IDs (41) 820 Alien Tech Used (0) 0 Bonus (3171) 3171 TOTAL SCORE: 12361 Bonus ------- High Alert Combat Kills 1011 Follower Combat Kills 667 Entered Garrisons 200 Used RIF Installer 1000 Aligned with FarCom 300 Friendly Fire -7 Cogmind --------- Core Integrity 0/550 Matter 112/300 Energy 194/800 System Corruption 15% Temperature Cool (9) Movement Core (200) Ox3 Location -8/Materials Parts ------- > --- POWER (1) -------- Hybrid Deuterium Engine > --- PROPULSION (3) --- Light Treads > --- UTILITY (4) ------ (None) > --- WEAPON (3) ------- Remote Datajack > --- INVENTORY (5) ---- Improved Signal Interpreter ECM Suite Relay Coupler [Specialist] (26) Remote Datajack Deploy-a-Sentry Peak State ------------ > --- POWER ------------ Hybrid Deuterium Engine > --- PROPULSION ------- Light Treads Light Treads Light Treads > --- UTILITY ---------- Huge Storage Unit Layered Light Armor Plating Hacking Suite Relay Coupler [Sentry] > --- WEAPON ----------- Light EM Pulse Cannon Light EM Pulse Cannon Remote Datajack > --- INVENTORY -------- Hybrid Deuterium Engine Hybrid Deuterium Engine Hybrid Deuterium Engine Compact Matter Pod Improved Signal Interpreter ECM Suite ECM Suite Insulated Plating Relay Coupler [NC] Relay Coupler [NC] Relay Coupler [Grunt] Relay Coupler [Specialist] Relay Coupler [Hunter] Trap Extractor Improved EM Shotgun Autogun Assault Cannon Shock Bomb Launcher Improved Grenade Launcher Datajack Remote Datajack Heavy Mace Deploy-a-Sentry Deploy-a-Sentry Deploy-a-Sentry [Rating: 35] Favorites ----------- Power Improved Ion Engine Engine Improved Ion Engine Propulsion Light Treads Treads Light Treads Utility High-capacity Storage Unit Device Seismic Detector Storage High-capacity Storage Unit Hackware Hacking Suite Protection Light Armor Plating Weapon Autogun Energy Gun Improved EM Shotgun Energy Cannon Light EM Pulse Cannon Ballistic Gun Autogun Ballistic Cannon Assault Cannon Launcher Improved Grenade Launcher Special Weapon Remote Datajack Impact Weapon Heavy Mace Special Melee Weapon Datajack Build | -11 -10 -10 -10 -9 -8 -8 -8 ------- Run | Yrd Mat Min Exi Min Mat Gar Mat Slots Evolved 4 | . . . . . 4 . . Power . | . . . . . . . . Propulsion 1 | . . . . . 1 . . Utility 2 | . . . . . 2 . . Weapon 1 | . . . . . 1 . . Parts Attached 84 | 7 11 3 2 7 19 12 23 Power 11 | 1 2 1 . 2 1 . 4 Engine 11 | 1 2 1 . 2 1 . 4 Core . | . . . . . . . . Reactor . | . . . . . . . . Propulsion 18 | 2 . 1 1 1 3 4 6 Treads 18 | 2 . 1 1 1 3 4 6 Leg . | . . . . . . . . Wheel . | . . . . . . . . Hover . | . . . . . . . . Flight . | . . . . . . . . Utility 34 | 2 6 . . 3 6 7 10 Device 5 | 1 1 . . 1 1 . 1 Storage 4 | 1 3 . . . . . . Processor . | . . . . . . . . Hackware 12 | . . . . . 2 4 6 Protection 13 | . 2 . . 2 3 3 3 Artifact . | . . . . . . . . Weapon 21 | 2 3 1 1 1 9 1 3 Energy Gun 6 | 1 . 1 . . 4 . . Energy Cannon 2 | . . . . . 1 . 1 Ballistic Gun 5 | 1 2 . . 1 1 . . Ballistic Cannon 1 | . . . . . . 1 . Launcher 2 | . . . . . 2 . . Special Weapon 2 | . . . . . . . 2 Impact Weapon 2 | . 1 . . . 1 . . Slashing Weapon . | . . . . . . . . Piercing Weapon . | . . . . . . . . Special Melee Weapon 1 | . . . 1 . . . . Unidentified Prototypes 3 | . . . . 1 2 . . Parts Lost 35 | . . 3 . 1 6 7 18 Power 3 | . . 1 . . 1 . 1 Propulsion 12 | . . 1 . 1 2 2 6 Utility 9 | . . . . . 2 3 4 Weapon 11 | . . 1 . . 1 2 7 Highest Loss Streak 11 | . . 2 . 1 2 3 11 To Critical Strikes 2 | . . . . 1 . . 1 Average Backups 15 | . 12 16 16 14 15 19 20 Power . | . . . . . 1 . . Propulsion 1 | . 2 2 1 . . . . Utility 8 | . 4 7 7 7 8 13 12 Weapon 5 | . 4 6 6 5 5 5 5 Tool/Special . | . . . . . . . . Unused Backups 36 | . 10 . 1 1 1 13 10 Power 3 | . . . . 1 . . 2 Propulsion . | . . . . . . . . Utility 21 | . 1 . 1 . . 12 7 Weapon 12 | . 9 . . . 1 1 1 Tool/Special . | . . . . . . . . Average Slot Usage (%) 97 | . 99 99 100 99 89 95 93 Engine 11 | . 14 13 14 14 8 9 8 Treads 25 | . 27 28 28 28 20 23 24 Device 2 | . 4 3 . . 7 . 1 Storage 11 | . 14 14 14 14 9 9 8 Hackware 4 | . . . . . 8 10 14 Protection 11 | . 9 10 14 13 9 14 9 Energy Gun 6 | . 1 10 14 5 10 7 1 Energy Cannon 1 | . . . . . 1 . 13 Ballistic Gun 13 | . 24 17 1 16 12 5 1 Ballistic Cannon 1 | . . . . . . 5 1 Special Melee Weapon 2 | . . . 12 5 . 4 . Peak Build Rating 35 | 7 11 11 12 22 27 30 35 Average Rating 17 | 5 9 10 11 13 23 26 28 On Entrance 14 | . 7 11 11 12 15 27 29 Avg Prop Armor Cover (%) . | . . . . . . . . Naked Turns . | . . . . . . . . Heaviest Build 109 | 13 94 54 52 58 70 107 109 Greatest Support 69 | 40 40 40 40 40 60 60 69 Greatest Overweight (x) 5 | . 4 1 1 1 3 2 5 Average Overweight (x) . | . . 1 1 1 1 1 1 Largest Inventory Capacity 25 | 8 25 20 20 20 20 25 25 Average Capacity 19 | 7 15 20 20 20 20 23 24 Most Carried 25 | 2 19 18 19 20 20 25 25 Average Carried 18 | 1 12 16 17 19 19 22 22 Final Capacity 25 | 8 20 20 20 20 20 25 5 Final Carried 25 | 2 18 17 18 20 19 25 5 Class Distribution -------------------- 50% | Mutant 13% | Scavenger-Mutant 11% | Bothacker-Mutant 8% | Scavenger-Tank 7% | Bothacker-Skirmisher 6% | Tank Dominant Class ---------------- Mutant | -10/Materials Mutant | -10/Mines Scavenger-Mutant | -10/Exiles Mutant | -9/Mines Tank | -8/Materials Bothacker-Mutant | -8/Garrison Bothacker-Skirmisher | -8/Materials Resources | -11 -10 -10 -10 -9 -8 -8 -8 ----------- Run | Yrd Mat Min Exi Min Mat Gar Mat Matter Collected 3439 | 288 730 209 . 241 514 823 634 Remotely . | . . . . . . . . Salvage Created 4489 | 108 1072 246 . 314 1199 454 1096 Parts 306 | 12 81 30 . 26 63 51 43 Haulers Intercepted 8 | . 2 . . . 5 . 1 Recyclers Shooed 3 | . 2 1 . . . . . Parts Field Recycled . | . . . . . . . . Retrieved Matter . | . . . . . . . . Parts Self-Destructed . | . . . . . . . . Prevented . | . . . . . . . . Parts Restored . | . . . . . . . . Kills | -11 -10 -10 -10 -9 -8 -8 -8 ------- Run | Yrd Mat Min Exi Min Mat Gar Mat Combat Hostiles Destroyed 104 | . 19 9 . 4 23 27 22 Melee 2 | . 1 . . . . . 1 Guns 50 | . 17 8 . 4 10 4 7 Cannons 12 | . . . . . 2 3 7 AOE 37 | . . 1 . . 11 20 5 Classes Destroyed 15 | 2 7 . . . 3 1 2 Worker 9 | . 1 1 . 3 1 . 3 Builder 10 | . 2 2 . . 4 . 2 Tunneler 9 | 3 4 . . 2 . . . Hauler 8 | . 2 . . . 5 . 1 Recycler 7 | 1 2 1 . 2 1 . . Operator 4 | . 3 . . . 1 . . Watcher 2 | . 2 . . . . . . Swarmer 37 | . 6 9 . 4 3 14 1 Grunt 46 | . 13 . . . 17 3 13 Brawler 5 | . . . . . . . 5 Duelist 1 | . . . . . 1 . . Protector 1 | . . . . . . . 1 Sentry 5 | . . . . . 1 2 2 Hunter 1 | . . . . . 1 . . Programmer 7 | . . . . . . 7 . Guerrilla 1 | . . . . . . 1 . Best Kill Streak 10 | 4 7 5 . 4 10 7 6 Combat Bots Only 7 | . 3 2 . 4 7 7 4 Max Kills in Single Turn 4 | 1 2 1 . 1 4 3 3 Gunslinging 1 | . 1 . . . . . . Exploded 3 | . . 1 . . 3 3 2 Melee 1 | . 1 . . . . . 1 Uniques/NPCs Destroyed . | . . . . . . . . Combat | -11 -10 -10 -10 -9 -8 -8 -8 -------- Run | Yrd Mat Min Exi Min Mat Gar Mat Hostile Shots Fired 494 | . 76 54 . 22 99 73 170 Missed 124 | . 28 12 . 4 20 20 40 Hits 370 | . 48 42 . 18 79 53 130 Melee 16 | . . . . . . . 16 Projectile 354 | . 48 42 . 18 79 53 114 Critical Strikes 17 | . . . . 3 2 3 9 Damage Taken 5102 | . 509 338 . 194 837 877 2347 Core 676 | . 103 19 . . 65 65 424 Absorbed by Shields 268 | . . . . . 263 . 5 Regen/Repaired (Parts) 16 | . . . . . . . 16 Core Remaining (%) 75 | 100 . . . 51 . . . Volleys Fired 354 | 6 81 33 . 20 57 68 89 Largest 3 | 2 2 2 . 2 3 3 3 Hottest 135 | 70 70 68 . 46 135 135 112 Shots Fired 648 | 12 159 60 . 37 145 95 140 Gun 457 | 12 159 60 . 37 125 32 32 Cannon 123 | . . . . . 8 45 70 Launcher 33 | . . . . . 12 18 3 Special 35 | . . . . . . . 35 Kinetic 411 | 6 150 46 . 34 96 60 19 Thermal 15 | 6 9 . . . . . . Explosive 33 | . . . . . 12 18 3 Electromagnetic 154 | . . 14 . 3 37 17 83 Robot Hit Streak 20 | 8 14 7 . 6 13 20 8 Robot Miss Streak 5 | 1 4 5 . 2 5 2 3 Penetration Max . | . . . . . . . . Secondary Targets 6 | . 2 1 . 1 2 . . Max Gunslinging Chain 1 | . 1 1 . 1 1 . . Shots Hit Robots 407 | 8 97 33 4 25 97 44 99 Core Hits 237 | 5 44 14 . 13 71 39 51 Critical Kills . | . . . . . . . . Critical Parts Destroyed 2 | . 1 . . 1 . . . Critical Strikes 6 | 1 2 . . 1 . . 2 Burn 2 | 1 1 . . . . . . Destroy 1 | . . . . 1 . . . Corrupt 1 | . . . . . . . 1 Smash 2 | . 1 . . . . . 1 Melee Attacks 61 | . 9 . 4 3 5 25 15 Impact 46 | . 9 . . . 5 17 15 Slashing . | . . . . . . . . Piercing . | . . . . . . . . Sneak Attacks 11 | . . . 4 3 . 4 . Combat Hostiles . | . . . . . . . . Follow-up Attacks . | . . . . . . . . Damage Inflicted 10916 | 95 1669 495 . 326 3424 2306 2601 Guns 4464 | 95 1527 452 . 326 1331 336 397 Cannons 1281 | . . . . . 164 228 889 Explosions 4670 | . . 43 . . 1929 1742 956 Melee 492 | . 142 . . . . . 350 Ramming 9 | . . . . . . . 9 Kinetic 3614 | 58 1489 350 . 276 934 332 175 Thermal 746 | 37 38 43 . . 83 39 506 Explosive 3999 | . . . . . 1846 1703 450 Electromagnetic 2056 | . . 102 . 50 561 232 1111 Impact 492 | . 142 . . . . . 350 Slashing . | . . . . . . . . Piercing . | . . . . . . . . Highest Corruption 15 | . . . . . . 2 15 Average Corruption 2 | . . . . . . 1 4 Corruption Purged . | . . . . . . . . Corruption Blocked . | . . . . . . . . Effects 50 | . . . . . . 22 28 Message Errors 11 | . . . . . . 5 6 Matter Fused 12 | . . . . . . 6 6 Heat Flow Errors 5 | . . . . . . 4 1 Energy Discharges 6 | . . . . . . 3 3 Parts Rejected 2 | . . . . . . . 2 Parts Fused 1 | . . . . . . 1 . Data Loss (minor) 7 | . . . . . . 2 5 Data Loss (major) 1 | . . . . . . 1 . Misfires 1 | . . . . . . . 1 Alerts 1 | . . . . . . . 1 Weapon Failures 3 | . . . . . . . 3 Overload Shots . | . . . . . . . . Overflow Damage 335 | . 49 . . . 54 162 70 Projectiles 3 | . . . . . . . 3 Explosions 261 | . . . . . 54 162 45 Melee 71 | . 49 . . . . . 22 Knockbacks 4 | . 1 . . . . 2 1 Impact 1 | . 1 . . . . . . Kinetic 3 | . . . . . . 2 1 Secondary . | . . . . . . . . Self-Inflicted Damage 215 | . . . . . . 112 103 Shots 7 | . . . . . . 3 4 Rammed 1 | . . . . . . . 1 Targets Rammed 1 | . . . . . . . 1 Kicked . | . . . . . . . . Crushed . | . . . . . . . . Highest Temperature 462 | 36 67 119 . 53 300 332 462 Average Temperature 75 | 16 16 39 . 17 75 86 132 Received Heat Transfer 1701 | . 177 . . 45 384 180 915 Effects 6 | . . . . . . 2 4 Shutdowns 1 | . . . . . . 1 . Energy Bleed 4 | . . . . . . 1 3 Short Circuit 1 | . . . . . . . 1 Siege Activations . | . . . . . . . . Martial Activations . | . . . . . . . . Shielding Activations . | . . . . . . . . Robots Disrupted . | . . . . . . . . Combat Hostiles . | . . . . . . . . Robots Corrupted 3 | . 1 . . . . . 2 Combat Hostiles 3 | . 1 . . . . . 2 Parts Fried 3 | . . . . . 1 . 2 Impact Corruptions 5 | . 3 . . . . . 2 Robots Melted . | . . . . . . . . Combat Hostiles . | . . . . . . . . Parts Melted 4 | 2 1 . . . . . 1 Heat Transferred 1170 | 185 185 100 . . 100 100 500 Parts Sabotaged . | . . . . . . . . Parts Stolen . | . . . . . . . . Parts Stripped . | . . . . . . . . Power Chain Reactions 6 | . . 1 . . 1 1 3 Alert | -11 -10 -10 -10 -9 -8 -8 -8 ------- Run | Yrd Mat Min Exi Min Mat Gar Mat Maximum Alert Level 5 | . 1 . . . 2 5 4 Low Security (%) 64 | 100 94 100 . 100 88 . . Level 1 4 | . 5 . . . 3 11 . Level 2 2 | . . . . . 8 8 . Level 3 13 | . . . . . . 10 91 Level 4 7 | . . . . . . 32 8 Level 5 7 | . . . . . . 36 . High Security . | . . . . . . . . Max Security . | . . . . . . . . Peak Influence 2061 | 15 234 126 . 119 450 2061 1203 Initial 1004 | . . 86 . . . 286 1004 Average 420 | 1 64 38 . 20 120 1311 914 Influence Increases 5037 | 20 680 262 . 186 853 1865 1171 Destroy 0b10 Robot/C 2440 | . 380 180 . 80 460 760 580 Destroy 0b10 Robot/NC 255 | 20 80 20 . 35 60 . 40 Destroy Leader 390 | . 108 30 . 10 100 20 122 Allied During Kill 103 | . . . . . . 78 25 Trap Triggered on 0b10 30 | . . . . 10 20 . . Successful Hack 75 | . . . . 6 29 24 16 Select Force Hacks 60 | . 60 . . . . . . Disable Machine 300 | . 15 . . 45 30 120 90 Anti-Garrison Action 750 | . . . . . . 600 150 Destroy Structure 304 | . 7 2 . . 64 188 43 Partial Spotted 15 | . . . . . 15 . . Lose Combat Pursuer 315 | . 30 30 . . 75 75 105 Influence Decreases 3834 | 20 458 484 . 186 412 245 2029 Entered New Map 1348 | . . 136 . . . 155 1057 Time Decay 1776 | 20 458 318 . 176 352 . 452 Lost Part 350 | . . 30 . 10 60 70 180 Lost Ally 210 | . . . . . . 20 190 Purge Threat 150 | . . . . . . . 150 Squads Dispatched 20 | . 6 . . . 5 . 9 Investigation 7 | . 3 . . . 1 . 3 Extermination . | . . . . . . . . Reinforcement 7 | . 3 . . . 3 . 1 Assault 4 | . . . . . . . 4 Garrison 2 | . . . . . 1 . 1 Intercept . | . . . . . . . . Searches Triggered . | . . . . . . . . Construction Impeded 1 | . . . . . 1 . . Haulers Reinforced . | . . . . . . . . Active Scanning Responses . | . . . . . . . . Cargo Convoy Interrupts . | . . . . . . . . Stealth | -11 -10 -10 -10 -9 -8 -8 -8 --------- Run | Yrd Mat Min Exi Min Mat Gar Mat Distress Signals 11 | . 1 . . . 4 . 6 Communications Jammed . | . . . . . . . . Distress Signals . | . . . . . . . . Times Spotted 181 | . 36 11 . 6 37 33 58 Peak Tracking Total 9 | . 4 3 . 4 7 6 9 Tactical Retreats 16 | . 1 2 . . 5 2 6 ECM-based Alert Blocks 5 | . . . . . . . 5 Traps | -11 -10 -10 -10 -9 -8 -8 -8 ------- Run | Yrd Mat Min Exi Min Mat Gar Mat Traps Triggered 13 | . 2 . . . . 9 2 Indirectly . | . . . . . . . . Trap Hack Attempts . | . . . . . . . . Triggered . | . . . . . . . . Disarmed . | . . . . . . . . Reprogrammed . | . . . . . . . . Reused 3 | . . . . 1 2 . . Traps Extracted . | . . . . . . . . Installed 3 | . . . . 1 2 . . Triggered 3 | . . . . 1 2 . . Most Traps Carried 3 | . . . . 3 2 . . Machines | -11 -10 -10 -10 -9 -8 -8 -8 ---------- Run | Yrd Mat Min Exi Min Mat Gar Mat Machines Disabled 29 | . 2 . . 3 2 15 7 Max in Single Turn 6 | . 1 . . 1 1 1 6 Garrison Access 1 | . . . . . . . 1 Garrison Relay 6 | . . . . . . 6 . Machines Repaired . | . . . . . . . . Machines Dismantled . | . . . . . . . . Machines Sabotaged . | . . . . . . . . Overloaded Fab Kills . | . . . . . . . . Hacking | -11 -10 -10 -10 -9 -8 -8 -8 --------- Run | Yrd Mat Min Exi Min Mat Gar Mat Machines Accessed 21 | . 5 . 2 1 5 4 4 Terminals 14 | . 3 . . 1 3 4 3 Fabricators . | . . . . . . . . Repair Stations 1 | . . . . . . . 1 Recycling Units 2 | . 2 . . . . . . Scanalyzers 1 | . . . . . 1 . . Garrison Access 1 | . . . . . 1 . . Total Hacks 48 | . 13 . 5 2 12 7 9 Successful 28 | . 7 . 5 1 5 4 6 Failed 19 | . 5 . . 1 7 3 3 Catastrophic 3 | . . . . 1 1 1 . Database Lockouts 1 | . 1 . . . . . . Manual 29 | . 13 . 1 2 7 3 3 Terminals 36 | . 11 . . 2 8 7 8 Fabricators . | . . . . . . . . Repair Stations 1 | . . . . . . . 1 Recycling Units 2 | . 2 . . . . . . Scanalyzers 3 | . . . . . 3 . . Garrison Access 1 | . . . . . 1 . . Terminal Hacks 17 | . 1 . 5 1 2 3 5 Record 4 | . . . 4 . . . . Robot Analysis 4 | . 1 . . 1 1 . 1 Open Door 1 | . . . . . . 1 . Emergency Access Points 1 | . . . . . . 1 . Terminal Index 2 | . . . . . 1 . 1 Unreport Threat 1 | . . . . . . . 1 Surveillance Status 1 | . . . . . . . 1 Zone Layout 1 | . . . . . . . 1 Garrison Registry 1 | . . . . . . 1 . Proto ID Catalog 1 | . . . 1 . . . . Fabricator Hacks . | . . . . . . . . Repair Station Hacks . | . . . . . . . . Recycling Unit Hacks . | . . . . . . . . Scanalyzer 2 | . . . . . 2 . . Retrieve Study 2 | . . . . . 2 . . Garrison Access Hacks 1 | . . . . . 1 . . Unlock Access 1 | . . . . . 1 . . Unauthorized Hacks 8 | . 6 . . . . 1 1 Terminals 5 | . 4 . . . . 1 . Botnet 1 | . 1 . . . . . . Skim 3 | . 3 . . . . . . Override 1 | . . . . . . 1 . Fabricators . | . . . . . . . . Repair Stations 1 | . . . . . . . 1 Patch 1 | . . . . . . . 1 Recycling Units 2 | . 2 . . . . . . Tunnel 2 | . 2 . . . . . . Scanalyzers . | . . . . . . . . Garrison Access . | . . . . . . . . Data Cores Recovered . | . . . . . . . . Used . | . . . . . . . . Hacking Detections 14 | . 3 . . 1 4 3 3 Full Trace Events 4 | . . . . 1 2 1 . Feedback Events 2 | . . . . . 1 1 . Hackware Fried 2 | . . . . . 1 1 . Feedback Blocked . | . . . . . . . . Robot Schematics Acquired . | . . . . . . . . Robots Built . | . . . . . . . . Authchips . | . . . . . . . . Time . | . . . . . . . . Total Robot Build Rating . | . . . . . . . . Part Schematics Acquired . | . . . . . . . . Parts Built . | . . . . . . . . Authchips . | . . . . . . . . Time . | . . . . . . . . Total Part Build Rating . | . . . . . . . . Part Studies Acquired 2 | . . . . . 2 . . Parts Repaired . | . . . . . . . . Time . | . . . . . . . . Parts Recycled . | . . . . . . . . Recycled Matter . | . . . . . . . . Retrieved Matter . | . . . . . . . . Retrieved Components . | . . . . . . . . Parts Scanalyzed . | . . . . . . . . Part Schematics Acquired . | . . . . . . . . Parts Damaged . | . . . . . . . . Bothacking | -11 -10 -10 -10 -9 -8 -8 -8 ------------ Run | Yrd Mat Min Exi Min Mat Gar Mat Used RIF Installer 2 | . . . . . . 2 . Zone Cloak 1 | . . . . . . 1 . Robots Hacked 31 | . . . 4 3 . 4 20 Non-combat 12 | . . . 3 3 . . 6 Combat 19 | . . . 1 . . 4 14 Robot Hacks Applied 32 | . . . 4 3 . 4 21 parse_system 8 | . . . 4 2 . . 2 no_distress 1 | . . . . 1 . . . map_walls 1 | . . . . . . . 1 drop_inventory 1 | . . . . . . . 1 ignore_parts 1 | . . . . . . . 1 map_route 1 | . . . . . . . 1 find_garrison 1 | . . . . . . . 1 amplify_resonance 4 | . . . . . . . 4 disable_weapons 1 | . . . . . . . 1 overwrite_iff 3 | . . . . . . . 3 formatsys_high 10 | . . . . . . 4 6 Relay Couplers Released 29 | . . . . . . 27 2 Machine Destruction 29 | . . . . . . 27 2 Attached 9 | . . . . . . 3 6 Fabnet Peak Effective % . | . . . . . . . . Robots Rewired . | . . . . . . . . Allies Hacked . | . . . . . . . . Hacks Repelled . | . . . . . . . . Allies | -11 -10 -10 -10 -9 -8 -8 -8 -------- Run | Yrd Mat Min Exi Min Mat Gar Mat Total Allies 15 | . . . . . . 6 9 Largest Group 2 | . . . . . . 2 2 Highest-Rated Group 78 | . . . . . . 78 48 Highest-Rated Ally 39 | . . . . . . 39 27 Total Orders . | . . . . . . . . Ally Attacks 109 | . . . . . . 47 62 Total Damage 1861 | . . . . . . 726 1135 Kills 20 | . . . . . . 11 9 Allies Corrupted . | . . . . . . . . Allies Melted 1 | . . . . . . . 1 Turrets Deployed 1 | . . . . . . . 1 Intel | -11 -10 -10 -10 -9 -8 -8 -8 ------- Run | Yrd Mat Min Exi Min Mat Gar Mat Active Infowar (turns) 1114 | 55 659 272 . 1 . . 127 Sensors 1 | . . . . 1 . . . Seismic 986 | 55 659 272 . . . . . ECM 127 | . . . . . . . 127 Robot Analysis Total 4 | . 1 . . 1 1 . 1 Derelict Logs Recovered 5 | . . 2 . 3 . . . Drone Launches . | . . . . . . . . Drone Recoveries . | . . . . . . . . Exploration | -11 -10 -10 -10 -9 -8 -8 -8 ------------- Run | Yrd Mat Min Exi Min Mat Gar Mat Turns Passed 9908 | 146 2287 1179 688 1516 1056 1897 1139 Spaces Moved 3847 | 74 952 453 282 594 374 774 344 Core 11 | 2 . . . . . . 9 Treads 3836 | 72 952 453 282 594 374 774 335 Legs . | . . . . . . . . Wheels . | . . . . . . . . Hover . | . . . . . . . . Flight . | . . . . . . . . Fastest Speed 50 | 50 160 240 240 240 200 200 150 Average Speed 216 | 157 203 240 240 240 213 204 205 Slowest Speed 480 | 160 480 240 240 240 280 240 360 Overloaded Moves . | . . . . . . . . Propulsion Burnouts . | . . . . . . . . Robots Hopped . | . . . . . . . . Potential Cave-ins 1 | . . . . . 1 . . Cave-ins Triggered . | . . . . . . . . Exploration Rate (%) 67 | 6 97 99 70 100 40 89 41 Regions Visited 7 Branch Regions 3 Pre-discovered Areas 6 | . 2 2 1 1 . . . Known Exits Taken 1 | . . . . . 1 . . Unknown Exits Taken 5 | 1 1 1 1 1 . . . Scrap Searched 5 | . . 3 . 2 . . . Spaces Dug 36 | . 4 . . . 5 26 1 Terrain Destroyed 247 | . 4 2 . . 74 111 56 Melee 21 | . 4 . . . 5 11 1 Projectile 1 | . . . . . . 1 . AOE 225 | . . 2 . . 69 99 55 Terrain Rammed . | . . . . . . . . Walls Destroyed . | . . . . . . . . Machines Disabled . | . . . . . . . . Actions | -11 -10 -10 -10 -9 -8 -8 -8 --------- Run | Yrd Mat Min Exi Min Mat Gar Mat Total 4825 | 88 1156 494 292 658 524 983 630 Wait 257 | . 51 4 . 15 41 25 121 Move 3841 | 73 951 452 281 593 374 773 344 Hop . | . . . . . . . . Pick Up 92 | 2 30 1 3 7 13 30 6 Fast Attach 30 | 7 4 1 . 2 5 2 9 Attach 32 | . . 2 . 1 7 9 13 Detach 3 | . . . . . . 1 2 Swap 61 | . 10 1 2 6 10 17 15 Drop 77 | . 20 . 2 10 10 20 15 Fire 354 | 6 81 33 . 20 57 68 89 Melee 61 | . 9 . 4 3 5 25 15 Ram . | . . . . . . . . Kick . | . . . . . . . . Crush 1 | . . . . . . . 1 Escape Stasis 12 | . . . . . . 12 . Rewire 1 | . . . . . . 1 . Trap 3 | . . . . 1 2 . . Miscellaneous . | . . . . . . . . Route ------- -11/Scrapyard -10/Materials (discovered 4 exits: [*Mat x3] / [*Min]) -10/Mines (discovered 4 exits: [*Mat x2] / *Exi / [*Sub]) -10/Exiles -9/Mines (discovered 2 exits: *Mat x2) -8/Materials (discovered 3 exits: [*Fac x2] / Gar) -8/Garrison (discovered 3 exits: *Mat x3) -8/Materials (discovered 1 exit: [*Fac]) History --------- Turn | Location | Event 10 | -11/Scrapyard | Discovered new exit (range 14) 147 | -11/Scrapyard | Entered Materials 300 | -10/Materials | Build established: Mutant 310 | -10/Materials | Discovered new exit (range 13) 395 | -10/Materials | Discovered new exit (range 16) 721 | -10/Materials | Discovered new exit (range 10) 827 | -10/Materials | Central database locked down 916 | -10/Materials | Discovered new exit (range 14) 2434 | -10/Materials | Entered Mines 2514 | -10/Mines | Discovered new exit (range 8) 2790 | -10/Mines | Deemed a non-threat by the Exiles lab entrance 2790 | -10/Mines | Discovered new exit (range 5) 2823 | -10/Mines | Learned Materials non-interactive machine intel 2872 | -10/Mines | Discovered new exit (range 9) 2989 | -10/Mines | Learned location of Storage (-7) 3001 | -10/Mines | Discovered new exit (range 15) 3613 | -10/Mines | Entered Exiles 3673 | -10/Exiles | Met 8R-AWN 3715 | -10/Exiles | Met EX-HEX 3786 | -10/Exiles | Met EX-BIN 3814 | -10/Exiles | Aligned with FarCom system 3816 | -10/Exiles | Given EX-Vault access code 3871 | -10/Exiles | Opened EX-Vault 3890 | -10/Exiles | Found Deploy-a-Sentry 3894 | -10/Exiles | Found Deploy-a-Sentry 3897 | -10/Exiles | Found Deploy-a-Sentry 3951 | -10/Exiles | Warned to stay clear of 0b10 Research branches 4013 | -10/Exiles | Met EX-DEC 4025 | -10/Exiles | Learned location of Zion (-7) 4189 | -10/Exiles | Build established: Scavenger-Mutant 4267 | -10/Exiles | Discovered new exit (range 14) 4301 | -10/Exiles | Left Exiles lab with Deploy-a-Sentry 4301 | -10/Exiles | Entered Mines 4364 | -9/Mines | Met a Derelict bent on vengeance 4476 | -9/Mines | Discovered new exit (range 7) 4703 | -9/Mines | Found a hidden stash of uninstalled traps 4785 | -9/Mines | Learned Materials garrison access intel 4819 | -9/Mines | Learned Materials garrison access intel 5069 | -9/Mines | Learned location of Recycling (-7) 5117 | -9/Mines | Discovered new exit (range 5) 5257 | -9/Mines | Build established: Mutant 5456 | -9/Mines | Found DCF Scrap (14 items) 5512 | -9/Mines | Found a damaged Exp. Sensor Array with a note attached 5518 | -9/Mines | Found Prototype Device 5518 | -9/Mines | Identified Exp. Sensor Array 5817 | -9/Mines | Entered Materials 5817 | -8/Materials | Evolved 4 slots: Propulsion x1, Utility x2, Weapon x1 5818 | -8/Materials | Loaded intel: 37 non-interactive machine locations 5819 | -8/Materials | Loaded intel: 1 garrison access location 6048 | -8/Materials | Hacking Suite fried by hacking feedback 6388 | -8/Materials | Discovered new exit (range 6) 6669 | -8/Materials | Discovered new exit (range 16) 6687 | -8/Materials | Garrison activated, responded to threat 6689 | -8/Materials | Build established: Scavenger-Tank 6772 | -8/Materials | Destroyed 7 combat bots 6873 | -8/Materials | Identified exit to Garrison 6873 | -8/Materials | Entered Garrison 7046 | -8/Garrison | Triggered checkpoint 7128 | -8/Garrison | Rescued a captive Derelict 7131 | -8/Garrison | Rescued a captive Derelict 7231 | -8/Garrison | Triggered checkpoint 7233 | -8/Garrison | Triggered checkpoint 7235 | -8/Garrison | Triggered checkpoint 7258 | -8/Garrison | Destroyed 7 combat bots 7287 | -8/Garrison | Triggered checkpoint 7384 | -8/Garrison | Installed Relay Interface Framework 7408 | -8/Garrison | Triggered checkpoint 7472 | -8/Garrison | Expanded RIF knowledge: Zone Cloak 7522 | -8/Garrison | P-60 Hacker assimilated allied HV-VFZ(h) 7530 | -8/Garrison | P-60 Hacker assimilated allied JC-R0U(h) 7546 | -8/Garrison | Garrison Relay disabled 7561 | -8/Garrison | Lost 3 parts (1u2w) 7563 | -8/Garrison | Discovered new exit (range 8) 7565 | -8/Garrison | Garrison Relay disabled 7568 | -8/Garrison | Garrison Relay disabled 7571 | -8/Garrison | Garrison Relay disabled 7707 | -8/Garrison | Hacking Suite fried by hacking feedback 7851 | -8/Garrison | Identified exit to Materials 7952 | -8/Garrison | Triggered checkpoint 7972 | -8/Garrison | Garrison Relay disabled 8053 | -8/Garrison | Build established: Bothacker-Mutant 8409 | -8/Garrison | Triggered checkpoint 8446 | -8/Garrison | P-60 Hacker assimilated allied Defender 3c 8557 | -8/Garrison | Garrison Relay disabled 8587 | -8/Garrison | Discovered exit to Materials (range 79) 8587 | -8/Garrison | Discovered exit to Materials (range 73) 8587 | -8/Garrison | Discovered exit to Materials (range 30) 8770 | -8/Garrison | Entered Materials 8770 | -8/Materials | Accompanied by 2 allies 8771 | -8/Materials | Loaded intel: 1 garrison access location 9005 | -8/Materials | Discovered new exit (range 15) 9170 | -8/Materials | First assault squad dispatched 9287 | -8/Materials | Build established: Bothacker-Skirmisher 9287 | -8/Materials | Lost 3 allies 9620 | -8/Materials | Garrison activated, responded to threat 9704 | -8/Materials | System corruption reached 10% 9751 | -8/Materials | Lost 6 parts (2n2u2w) 9761 | -8/Materials | Core integrity fell below 50% 9885 | -8/Materials | Core integrity fell below 20% 9894 | -8/Materials | DAS Turret deployed 9909 | -8/Materials | Destroyed by G-50 Soldier with Heavy Laser Last Messages --------------- 09889_ Dropped Deploy-a-Sentry. 09890_ System corrupted: Component data lost. 09891_ Dropped Huge Storage Unit. 09893_ Acquired 21 matter. 09894_ DAS Turret deployed. 09895_ Y-45 Defender destroyed. 09897_ K-01 Serf collects debris. 09897_ Y-45 Defender Lgt. Treads blasted off. 09898_ K-01 Serf collects debris. 09900_ Acquired Lgt. Treads+. 09900_ K-01 Serf collects debris. 09900_ Destroyed Lgt. Armor Plating. 09901_ Acquired 6 matter. 09902_ DAS Turret suffers critical hit (Burn). 09902_ K-01 Serf collects debris. 09904_ Acquired Deploy-a-Sentry. 09904_ Y-45 Defender destroyed. 09905_ Acquired 5 matter. 09906_ G-50 Soldier knocked back. 09909_ K-01 Serf collects debris. Map ----- +----------------------------------------------------+ | ?????##?# = #??????????????????????????????? | | #??# #??????????????????????????????? | | #??# #??????????????????????????????? | | #??# #??????????????????????????????? | | #??##+#####??????????????????????????????? | | +######??# #?????#????????????????????????????? | | #??# #?????# ???????????????????????????? | | #### ####### ?????????????????????????? | | + + ?????????????????????????? | | ########## ####+##??????????????????????? | | #????????# #?? #??????????????????????? | | #????????# ### #??????????????????????? | | #????????# #??????????????????????? | | +######????????# #??????????????????????? | | ######??????# #??????????????????????? | | ######## # ????????????????????? | | =%= ! # ?????????????????????? | | %!== % ?????????????????????? | | ==## """ #??????????????????????? | | ##### %= *^! G" #??????????????????????? | | ! # |%[= ^!* ###????????????????????? | | + !%*%=[%[*! #????????????????????? | | ?? # %!a a[ ! ##???????????????????? | | ??* ########### ] "#???????????????????? | | ????#??# ! % #a #;##???????????????????? | | ????#??# + ! @#???????????????????? | | ????#??# """# ** !!#???????????????????? | | ????#??# * """# [%!%=!#???????????????????? | | ????#??# """# |m!%!#???????????????????? | | #####??# #* *g%=t#???????????????????? | | ???????######## ]k##%#???????????????????? | | ??????????????# / ! == /##???????????????????? | | ??????????????#% %% ####????????????????? | | ??????????????# =%= #????????????????? | | ??????????????# %[=== =## ! #????????????????? | | ?##############%= === *=# #????????????????? | | ## # """"%/%t *%= *%%% ???????????? | | # " "%"### ! ######???????????? | | ## [# % [ #?##"## #????????????????? | | ?# *%+%/// !#? # ## #????????????????? | | ?# =#!/// # #####?###????????????????? | | ?# # // # #????????????????????????? | | ?# ######## #????????????????????????? | | ?# # # #????????????????????????? | | # # """ # #????????????????????????? | | # %# "R" # #????????????????????????? | | + + " " # #????????????????????????? | | # # #? #????????????????????????? | | # # #???#####?????????????????????????? | | ?# ########?????????????????????????????????? | +----------------------------------------------------+ Best States ------------- Heat Dissipation 31 Energy Generation 12 Energy Capacity 800 Matter Stores 300 Matter Capacity 300 Sight Range 16 Terrain Scan Density 10 ECM Strength 1 Armor Coverage 450 Resistance: EM 15 Evasion (%) 40 Recoil Reduction 3 Offensive Hacking 10 Relay Coupler Types 3 Relay Coupler Value 65 Item Schematics ----------------- None Robot Schematics ------------------ None Fabricated ------------ Nothing Repaired ---------- Nothing Studied --------- Lgt. Treads | -8/Materials | Hacked Autogun | -8/Materials | Hacked Alien Tech Used ----------------- None Achievements -------------- Junior Dev Challenges ------------ None Game ------ Seed CentriumImprovedDriveblaster Manual? 0 Play Time 00:59:37 Cumulative 55.2 hours Start 2025.11.03 @ 05:38:47 End 2025.11.03 @ 20:54:02 Sessions 3 Manual Loads 0 Difficulty Rogue Special Mode None Game No. 20 Rogue 20 Adventurer 0 Explorer 0 Win Type - Total 0 Types 0/0/0/0/0/0/0/0/0/0 Lore% 50 Gallery% 53 Achievement% 49 Wizard Run 0 Options --------- Layout 0 ASCII 0 Keyboard 0 Movement Mouse Keybinds 0 Fullscreen 1 Font 24/Smallcaps Map View 183x50 Zoom Use 0% Tactical HUD 1 Map Filters NONE Filters NONE Steam 1 RUN: bb212fdb-408c-4a8e-96bb-a26fc334fc2a